fUST/lending_fUST_20250615
["ID","MTS","AMOUNT","RATE_DAILY","PERIOD"]
[365949736,1749994260718,-742.48,0.00024109,2]
[365949737,1749994260728,-944.87,0.00024109,2]
[365949738,1749994260737,-1055.99,0.00024109,2]
[365949739,1749994260746,-1248.72,0.00024109,2]
[365949740,1749994260755,-592.82,0.00024109,2]
[365949741,1749994260764,-683.01,0.00024109,2]
[365949742,1749994260774,-707.09,0.00024109,2]
[365949743,1749994260783,-460.0,0.00024109,2]
[365949744,1749994260792,-460.0,0.00024109,2]
[365949745,1749994260802,-664.97,0.00024109,2]
[365949746,1749994260824,-573.35,0.00024109,2]
[365949747,1749994260834,-1099.93,0.00024109,2]
[365949748,1749994260843,-670.17,0.00024109,2]
[365949749,1749994260853,-1102.67,0.00024109,2]
[365949750,1749994260863,-1713.9,0.00024109,2]
[365949751,1749994260872,-500.0,0.0002412,2]
[365949752,1749994260881,-500.0,0.00024128,2]
[365949753,1749994260890,-500.0,0.00024134,2]
[365949754,1749994260900,-800.0,0.00024143,2]
[365949755,1749994260909,-7620.39078176,0.00024156,2]
[365949756,1749994260918,-500.0,0.00024183,2]
[365949757,1749994260928,-153.0,0.00024192,2]
[365949758,1749994260937,-153.0,0.00024192,2]
[365949759,1749994260946,-153.0,0.00024192,2]
[365949760,1749994260955,-153.0,0.00024192,2]
[365949761,1749994260965,-151.0,0.000242,6]
[365949762,1749994260974,-678.47,0.000242,7]
[365949763,1749994260983,-500.0,0.00024214,2]
[365949764,1749994260992,-2160.0,0.00024217,2]
[365949765,1749994261001,-653.0,0.00024217,2]
[365949766,1749994261011,-405.0,0.00024217,2]
[365949767,1749994261021,-406.0,0.00024217,2]
[365949768,1749994261032,-293.85068442,0.0002422,2]
[365949769,1749994261041,-500.0,0.00024222,2]
[365949770,1749994261051,-2200.0,0.00024229,2]
[365949771,1749994261061,-500.0,0.0002423,2]
[365949772,1749994261070,-3356.44753517,0.00024236,2]
[365949773,1749994261244,-176.17502909,0.00019172,2]
[365949774,1749994261254,-502.20325004,0.00019172,2]
[365949775,1749994261263,-196.38991946,0.00019172,2]
[365949776,1749994261273,-500.0,0.00019172,2]
[365949777,1749994261283,-500.0,0.00019178,2]
[365949778,1749994261292,-445.7589411,0.00019178,2]
[365949779,1749994261302,-460.0,0.00019178,2]
[365949780,1749994261314,-410.0,0.00019178,2]
[365949781,1749994261323,-400.0,0.00019178,2]
[365949782,1749994261333,-460.0,0.00019178,2]
[365949783,1749994261342,-420.0,0.00019452,2]
[365949784,1749994261354,-643.55246483,0.00024236,2]
[365949785,1749994261363,-1231.87757586,0.00024245,10]
[365949786,1749994261373,-500.0,0.00024261,2]
[365949787,1749994261383,-460.0,0.00024264,2]
[365949788,1749994261392,-460.0,0.00024264,2]
[365949789,1749994261402,-440.0,0.00024264,2]
[365949790,1749994261412,-507.28505521,0.00024264,2]
[365949791,1749994261421,-223.0315306,0.00024265,2]
[365949792,1749994261431,-500.0,0.0002427,2]
[365949793,1749994261441,-500.0,0.00024281,2]
[365949794,1749994261450,-500.0,0.00024291,2]
[365949795,1749994261459,-3347.72833406,0.000243,2]
[365949797,1749994313297,176.0,0.00017123,3]
[365949798,1749994313330,177.81717171,0.00018,2]
[365949800,1749994354869,157.93562872,0.00013699,2]
[365949804,1749994549056,3865.30534417,0.00018,2]
[365949805,1749994572475,24900.0,0.00017982,2]
[365949806,1749994593736,-500.0,0.00018173,2]
[365949807,1749994594764,-151.99243922,0.00018173,2]
[365949808,1749994594788,-348.00756078,0.00018173,2]
[365949809,1749994665173,171.53966116,0.00017628,2]
[365949810,1749994749426,172.438956,0.00017953,2]
[365949811,1749994749851,172.438956,0.00017953,120]
[365949816,1749995060838,464.275286,0.00013699,2]
[365949819,1749995236928,1000.0,0.00021918,60]
[365949820,1749995240114,-201.27308645,0.00018075,2]
[365949821,1749995240138,-205.27834744,0.00018075,2]
[365949823,1749995243126,-59.1941613,0.00018075,2]
[365949824,1749995243149,-300.0,0.00018167,2]
[365949825,1749995243174,-112.02420317,0.00018168,2]
[365949827,1749995246120,-230.8538879,0.00018168,2]
[365949828,1749995262543,437.612757,0.00017797,2]
[365949829,1749995289057,5000.0,0.00018,2]
[365949830,1749995304477,5000.0,0.00018,2]
[365949834,1749995346350,-425.99276817,0.00018075,2]
[365949835,1749995346373,-300.0,0.00018166,2]
[365949836,1749995346396,-572.51835421,0.00018167,2]
[365949837,1749995346420,-500.0,0.00018167,2]
[365949838,1749995346442,-500.0,0.00018167,2]
[365949839,1749995346467,-500.0,0.00018167,2]
[365949840,1749995346489,-500.0,0.00018167,2]
[365949841,1749995346512,-624.61038542,0.00018167,2]
[365949842,1749995346534,-500.0,0.00018167,2]
[365949843,1749995346556,-500.0,0.00018167,2]
[365949844,1749995346580,-500.0,0.00018167,2]
[365949845,1749995346603,-500.0,0.00018167,2]
[365949846,1749995346626,-500.0,0.00018167,2]
[365949847,1749995346648,-481.15277115,0.00018167,2]
[365949848,1749995346669,-216.45015067,0.00018167,2]
[365949849,1749995346696,-514.57063892,0.00018167,2]
[365949850,1749995346717,-500.0,0.00018167,2]
[365949851,1749995346739,-500.0,0.00018167,2]
[365949852,1749995346764,-500.0,0.00018167,2]
[365949853,1749995346788,-500.0,0.00018167,2]
[365949854,1749995346811,-569.06747041,0.00018167,2]
[365949855,1749995346835,-500.0,0.00018167,2]
[365949856,1749995346859,-500.0,0.00018167,2]
[365949857,1749995346882,-500.0,0.00018167,2]
[365949858,1749995346905,-500.0,0.00018167,2]
[365949859,1749995346928,-500.0,0.00018167,2]
[365949860,1749995346951,-338.9248808,0.00018167,2]
[365949861,1749995346975,-500.0,0.00018167,2]
[365949862,1749995346999,-500.0,0.00018167,2]
[365949863,1749995347022,-500.0,0.00018167,2]
[365949864,1749995347044,-500.0,0.00018167,2]
[365949865,1749995347068,-404.99144604,0.00018167,2]
[365949866,1749995347091,-500.0,0.00018167,2]
[365949867,1749995347114,-500.0,0.00018167,2]
[365949868,1749995347137,-500.0,0.00018167,2]
[365949869,1749995347159,-2807.13346312,0.00018168,2]
[365949870,1749995352077,-1892.90919951,0.00018168,2]
[365949871,1749995352099,-300.0,0.00018168,2]
[365949872,1749995352120,-300.0,0.00018168,2]
[365949873,1749995352143,-1200.0,0.00018168,2]
[365949874,1749995352166,-300.0,0.00018168,2]
[365949875,1749995352191,-500.0,0.00018173,2]
[365949876,1749995352216,-500.0,0.00018173,2]
[365949877,1749995352238,-381.63886107,0.00018173,2]
[365949878,1749995352264,-500.0,0.00018173,2]
[365949879,1749995352289,-500.0,0.00018173,2]
[365949880,1749995352314,-500.0,0.00018173,2]
[365949881,1749995352338,-500.0,0.00018173,2]
[365949882,1749995352363,-500.0,0.00018173,2]
[365949883,1749995352389,-300.0,0.00018173,2]
[365949884,1749995352411,-500.0,0.00018173,2]
[365949885,1749995352436,-3723.74969177,0.00018174,2]
[365949886,1749995357084,-6276.25030823,0.00018174,2]
[365949887,1749995357106,-160.8455298,0.00018175,2]
[365949888,1749995357127,-1054.5546153,0.00018209,2]
[365949889,1749995357147,-500.0,0.00018447,2]
[365949890,1749995357168,-285.89943527,0.00018603,2]
[365949891,1749995357189,-2112.24020431,0.000189,2]
[365949892,1749995362185,-2554.73674431,0.00019015,2]
[365949893,1749995362209,-425.99276817,0.00019052,2]
[365949894,1749995362231,-274.54808976,0.00019059,2]
[365949895,1749995362253,-160.0,0.00019139,2]
[365949896,1749995362275,-445.52603368,0.00019149,2]
[365949897,1749995362297,-1000.0,0.00019165,2]
[365949898,1749995362320,-1000.0,0.00019166,2]
[365949899,1749995362342,-160.0,0.00019166,2]
[365949900,1749995362364,-1000.0,0.00019167,2]
[365949901,1749995362385,-1000.0,0.00019167,2]
[365949902,1749995362408,-331.81,0.00019168,3]
[365949903,1749995362431,-165.91,0.00019168,3]
[365949904,1749995362454,-497.74,0.00019168,3]
[365949905,1749995362476,-1000.0,0.00019172,2]
[365949906,1749995362499,-534.13547628,0.00019173,2]
[365949907,1749995362523,-500.0,0.00019173,2]
[365949908,1749995362545,-505.4837933,0.00019173,2]
[365949909,1749995362568,-1000.0,0.00019177,3]
[365949910,1749995364135,-391.79375514,0.00019178,2]
[365949911,1749995364158,-430.0,0.00019178,2]
[365949912,1749995364180,-401.18964997,0.00019178,2]
[365949913,1749995364204,-460.0,0.00019178,2]
[365949914,1749995364228,-460.0,0.00019178,2]
[365949915,1749995364258,-460.0,0.00019178,2]
[365949916,1749995364288,-460.0,0.00019178,2]
[365949917,1749995364313,-436.39936876,0.00019178,2]
[365949918,1749995364336,-440.0,0.00019178,2]
[365949919,1749995364521,-460.0,0.00019178,2]
[365949920,1749995364545,-177.37996635,0.00019178,2]
[365949921,1749995364568,-460.0,0.00019178,2]
[365949922,1749995364591,-154.23736188,0.00019178,2]
[365949923,1749995364614,-460.0,0.00019178,2]
[365949924,1749995364638,-255.01132169,0.00019178,2]
[365949925,1749995364662,-460.0,0.00019178,2]
[365949926,1749995364688,-180.30474223,0.00019178,2]
[365949927,1749995364712,-380.33389559,0.00019178,2]
[365949928,1749995364735,-460.0,0.00019178,2]
[365949929,1749995364758,-504.06427936,0.00019178,2]
[365949930,1749995364785,-460.0,0.00019178,2]
[365949931,1749995364811,-441.33120913,0.00019178,2]
[365949932,1749995364836,-460.0,0.00019178,2]
[365949933,1749995364860,-440.0,0.00019178,2]
[365949934,1749995364882,-460.0,0.00019178,2]
[365949935,1749995364904,-447.50886659,0.00019178,2]
[365949936,1749995364930,-460.0,0.00019178,2]
[365949937,1749995364953,-460.0,0.00019178,2]
[365949938,1749995364975,-460.0,0.00019178,2]
[365949939,1749995364999,-440.0,0.00019178,2]
[365949940,1749995365020,-460.0,0.00019178,2]
[365949941,1749995365043,-401.9920758,0.00019178,2]
[365949942,1749995365066,-460.0,0.00019178,2]
[365949943,1749995365088,-460.0,0.00019178,2]
[365949944,1749995365112,-460.0,0.00019178,2]
[365949945,1749995365135,-237.07720742,0.00019178,2]
[365949946,1749995365157,-460.0,0.00019178,2]
[365949947,1749995365179,-440.0,0.00019178,2]
[365949948,1749995365200,-223.00100927,0.00019178,2]
[365949949,1749995365223,-400.0,0.00019178,2]
[365949950,1749995365251,-161.99085637,0.00019178,2]
[365949951,1749995365276,-434.71521467,0.00019178,2]
[365949952,1749995365300,-71.19914334,0.00019178,2]
[365949953,1749995402304,300.0,0.00019177,2]
[365949954,1749995402737,300.0,0.00019177,2]
[365949955,1749995409281,1200.0,0.00019177,2]
[365949956,1749995426398,1000.0,0.00019177,2]
[365949973,1749995432635,-460.0,0.00019178,2]
[365949975,1749995432645,-440.0,0.00019178,2]
[365949977,1749995432654,-460.0,0.00019178,2]
[365949979,1749995432663,-476.68490611,0.00019178,2]
[365949981,1749995432673,-422.10499005,0.00019178,2]
[365949983,1749995432682,-536.5630767,0.00019178,2]
[365949985,1749995432822,-460.0,0.00019178,2]
[365949986,1749995432833,-370.0,0.00019178,2]
[365949987,1749995432842,-402.01289897,0.00019178,2]
[365949988,1749995432851,-213.26540214,0.00019178,2]
[365949989,1749995432894,-246.73459786,0.00019178,2]
[365949990,1749995432904,-460.0,0.00019178,2]
[365949991,1749995432913,-460.0,0.00019178,2]
[365949992,1749995432922,-450.90761382,0.00019178,2]
[365949993,1749995432941,-430.0,0.00019178,2]
[365949995,1749995432953,-460.0,0.00019178,2]
[365949997,1749995432963,-460.0,0.00019178,2]
[365949999,1749995432972,-398.87073197,0.00019178,2]
[365950001,1749995432982,-460.0,0.00019178,2]
[365950003,1749995432992,-430.0,0.00019178,2]
[365950005,1749995433002,-460.0,0.00019178,2]
[365950007,1749995433011,-460.0,0.00019178,2]
[365950009,1749995433021,-460.0,0.00019178,2]
[365950011,1749995433031,-360.0,0.00019178,2]
[365950013,1749995433041,-460.0,0.00019178,2]
[365950014,1749995433051,-460.0,0.00019178,2]
[365950015,1749995433060,-460.0,0.00019178,2]
[365950016,1749995433070,-460.0,0.00019178,2]
[365950017,1749995433079,-460.0,0.00019178,2]
[365950018,1749995433090,-460.0,0.00019178,2]
[365950019,1749995433099,-460.0,0.00019178,2]
[365950021,1749995433109,-460.0,0.00019178,2]
[365950023,1749995433120,-460.0,0.00019178,2]
[365950025,1749995433129,-158.21288016,0.00019178,2]
[365950027,1749995433139,-460.0,0.00019178,2]
[365950029,1749995433149,-390.0,0.00019178,2]
[365950031,1749995433159,-328.58521431,0.00019178,2]
[365950033,1749995433168,-460.0,0.00019178,2]
[365950035,1749995433178,-460.0,0.00019178,2]
[365950038,1749995433188,-460.0,0.00019178,2]
[365950040,1749995433198,-500.0,0.00019178,2]
[365950042,1749995433208,-460.0,0.00019178,2]
[365950044,1749995433217,-460.0,0.00019178,2]
[365950046,1749995433227,-460.0,0.00019178,2]
[365950048,1749995433237,-460.0,0.00019178,2]
[365950050,1749995433247,-460.0,0.00019178,2]
[365950052,1749995433257,-302.29621367,0.00019178,2]
[365950054,1749995433267,-16.91199428,0.00019178,2]
[365950056,1749995433281,-443.08800572,0.00019178,2]
[365950059,1749995433291,-83.61199428,0.00019178,2]
[365950290,1749995438668,-276.38800572,0.00019178,2]
[365950292,1749995438678,-460.0,0.00019178,2]
[365950294,1749995438688,-508.13166638,0.00019178,2]
[365950296,1749995438699,-460.0,0.00019178,2]
[365950298,1749995438710,-440.0,0.00019178,2]
[365950300,1749995438720,-460.0,0.00019178,2]
[365950302,1749995438730,-460.0,0.00019178,2]
[365950304,1749995438740,-460.0,0.00019178,2]
[365950306,1749995438750,-460.0,0.00019178,2]
[365950308,1749995438759,-378.82161306,0.00019178,2]
[365950310,1749995438769,-460.0,0.00019178,2]
[365950312,1749995438779,-460.0,0.00019178,2]
[365950316,1749995438789,-460.0,0.00019178,2]
[365950319,1749995438799,-460.0,0.00019178,2]
[365950321,1749995438809,-460.0,0.00019178,2]
[365950325,1749995438821,-460.0,0.00019178,2]
[365950328,1749995438831,-474.25946135,0.00019178,2]
[365950330,1749995438840,-410.0,0.00019178,2]
[365950333,1749995438850,-460.0,0.00019178,2]
[365950336,1749995438860,-460.0,0.00019178,2]
[365950338,1749995438869,-454.6137757,0.00019178,2]
[365950340,1749995438880,-581.85923875,0.00019178,2]
[365950342,1749995438890,-500.0,0.00019178,2]
[365950344,1749995438900,-551.12642169,0.00019178,2]
[365950346,1749995438910,-500.0,0.00019178,2]
[365950348,1749995438920,-420.0,0.00019178,2]
[365950350,1749995438929,-460.0,0.00019178,2]
[365950352,1749995438939,-430.0,0.00019178,2]
[365950354,1749995438949,-460.0,0.00019178,2]
[365950356,1749995438958,-460.0,0.00019178,2]
[365950358,1749995438968,-460.0,0.00019178,2]
[365950360,1749995438977,-460.0,0.00019178,2]
[365950362,1749995438987,-460.0,0.00019178,2]
[365950364,1749995438996,-460.0,0.00019178,2]
[365950366,1749995439006,-460.0,0.00019178,2]
[365950368,1749995439015,-577.00179121,0.00019178,2]
[365950370,1749995439025,-460.0,0.00019178,2]
[365950372,1749995439035,-460.0,0.00019178,2]
[365950374,1749995439044,-446.95560544,0.00019178,2]
[365950376,1749995439054,-473.36,0.00019178,2]
[365950378,1749995439063,-460.0,0.00019178,2]
[365950380,1749995439073,-460.0,0.00019178,2]
[365950382,1749995439083,-460.0,0.00019178,2]
[365950384,1749995439093,-460.0,0.00019178,2]
[365950386,1749995439103,-460.0,0.00019178,2]
[365950388,1749995439112,-460.0,0.00019178,2]
[365950390,1749995439122,-312.68366557,0.00019178,2]
[365950392,1749995439131,-460.0,0.00019178,2]
[365950394,1749995439141,-500.0,0.00019178,2]
[365950396,1749995439151,-500.0,0.00019178,2]
[365950398,1749995439160,-500.0,0.00019178,2]
[365950400,1749995439170,-250.53418366,0.00019178,2]
[365950402,1749995439179,-460.0,0.00019178,2]
[365950404,1749995439189,-460.0,0.00019178,2]
[365950406,1749995439198,-460.0,0.00019178,2]
[365950408,1749995439207,-460.0,0.00019178,2]
[365950410,1749995439217,-460.0,0.00019178,2]
[365950412,1749995439226,-370.0,0.00019178,2]
[365950414,1749995439235,-460.0,0.00019178,2]
[365950416,1749995439245,-439.85770758,0.00019178,2]
[365950418,1749995439255,-410.0,0.00019178,2]
[365950420,1749995439264,-410.0,0.00019178,2]
[365950422,1749995439274,-460.0,0.00019178,2]
[365950424,1749995439283,-460.0,0.00019178,2]
[365950427,1749995439293,-616.03,0.00019178,2]
[365950429,1749995439303,-460.0,0.00019178,2]
[365950432,1749995439313,-460.0,0.00019178,2]
[365950435,1749995439323,-430.0,0.00019178,2]
[365950436,1749995439333,-460.0,0.00019178,2]
[365950438,1749995439342,-460.0,0.00019178,2]
[365950440,1749995439352,-424.41347965,0.00019178,2]
[365950442,1749995439361,-460.0,0.00019178,2]
[365950445,1749995439371,-440.0,0.00019178,2]
[365950446,1749995439381,-560.29073155,0.00019178,2]
[365950449,1749995439392,-440.0,0.00019178,2]
[365950451,1749995439401,-460.0,0.00019178,2]
[365950453,1749995439411,-205.93978856,0.00019178,2]
[365950455,1749995439420,-460.0,0.00019178,2]
[365950457,1749995439430,-460.0,0.00019178,2]
[365950459,1749995439439,-460.0,0.00019178,2]
[365950461,1749995439448,-432.77074467,0.00019178,2]
[365950463,1749995439458,-460.0,0.00019178,2]
[365950465,1749995439468,-460.0,0.00019178,2]
[365950467,1749995439477,-395.40081918,0.00019178,2]
[365950469,1749995439487,-460.0,0.00019178,2]
[365950471,1749995439497,-396.77734418,0.00019178,2]
[365950473,1749995439506,-460.0,0.00019178,2]
[365950475,1749995439516,-460.0,0.00019178,2]
[365950477,1749995439526,-460.0,0.00019178,2]
[365950479,1749995439535,-460.0,0.00019178,2]
[365950481,1749995439545,-460.0,0.00019178,2]
[365950483,1749995439554,-460.0,0.00019178,2]
[365950485,1749995439564,-500.0,0.00019178,2]
[365950487,1749995439574,-440.0,0.00019178,2]
[365950489,1749995439585,-460.0,0.00019178,2]
[365950491,1749995439595,-533.52,0.00019178,2]
[365950493,1749995439605,-460.0,0.00019178,2]
[365950495,1749995439615,-460.0,0.00019178,2]
[365950497,1749995439625,-460.0,0.00019178,2]
[365950499,1749995439634,-384.91384267,0.00019178,2]
[365950501,1749995439644,-460.0,0.00019178,2]
[365950503,1749995439653,-383.8502655,0.00019178,2]
[365950505,1749995439663,-460.0,0.00019178,2]
[365950507,1749995439673,-432.1844074,0.00019178,2]
[365950509,1749995439682,-460.0,0.00019178,2]
[365950511,1749995439692,-460.0,0.00019178,2]
[365950513,1749995439706,-460.0,0.00019178,2]
[365950516,1749995439723,-1280.45,0.00019178,2]
[365950518,1749995439734,-460.0,0.00019178,2]
[365950520,1749995439745,-460.0,0.00019178,2]
[365950522,1749995439755,-340.03043852,0.00019178,2]
[365950525,1749995439764,-500.0,0.00019178,2]
[365950527,1749995439775,-356.20223324,0.00019178,2]
[365950529,1749995439784,-460.0,0.00019178,2]
[365950531,1749995439794,-460.0,0.00019178,2]
[365950533,1749995439803,-460.0,0.00019178,2]
[365950535,1749995439813,-460.0,0.00019178,2]
[365950537,1749995439823,-460.0,0.00019178,2]
[365950539,1749995439835,-460.0,0.00019178,2]
[365950541,1749995439844,-1109.87,0.00019178,2]
[365950543,1749995439853,-460.0,0.00019178,2]
[365950545,1749995439864,-460.0,0.00019178,2]
[365950547,1749995439874,-1759.83,0.00019178,2]
[365950549,1749995439883,-460.0,0.00019178,2]
[365950551,1749995439893,-271.79467864,0.00019178,2]
[365950553,1749995439904,-404.32079073,0.00019178,2]
[365950555,1749995439914,-460.0,0.00019178,2]
[365950557,1749995439924,-430.0,0.00019178,2]
[365950559,1749995439934,-178.58655484,0.00019178,2]
[365950561,1749995439944,-460.0,0.00019178,2]
[365950563,1749995439953,-1313.22,0.00019178,2]
[365950565,1749995439963,-460.0,0.00019178,2]
[365950567,1749995439972,-460.0,0.00019178,2]
[365950569,1749995439982,-460.0,0.00019178,2]
[365950571,1749995439992,-460.0,0.00019178,2]
[365950574,1749995440002,-460.0,0.00019178,2]
[365950576,1749995440012,-518.98,0.00019178,2]
[365950578,1749995440022,-460.0,0.00019178,2]
[365950580,1749995440032,-460.0,0.00019178,2]
[365950582,1749995440042,-460.0,0.00019178,2]
[365950584,1749995440051,-460.0,0.00019178,2]
[365950586,1749995440062,-483.61669728,0.00019178,2]
[365950588,1749995440071,-460.0,0.00019178,2]
[365950590,1749995440081,-460.0,0.00019178,2]
[365950592,1749995440091,-283.61316749,0.00019178,2]
[365950594,1749995440100,-460.0,0.00019178,2]
[365950596,1749995440109,-460.0,0.00019178,2]
[365950598,1749995440119,-460.0,0.00019178,2]
[365950600,1749995440128,-460.0,0.00019178,2]
[365950602,1749995440138,-460.0,0.00019178,2]
[365950604,1749995440147,-460.0,0.00019178,2]
[365950606,1749995440158,-460.0,0.00019178,2]
[365950608,1749995440167,-460.0,0.00019178,2]
[365950611,1749995440177,-460.0,0.00019178,2]
[365950613,1749995440186,-460.0,0.00019178,2]
[365950615,1749995440196,-460.0,0.00019178,2]
[365950617,1749995440206,-188.9505723,0.00019178,2]
[365950619,1749995440215,-460.0,0.00019178,2]
[365950621,1749995440225,-460.0,0.00019178,2]
[365950623,1749995440234,-495.1731291,0.00019178,2]
[365950625,1749995440244,-298.79108871,0.00019178,2]
[365950627,1749995440254,-460.0,0.00019178,2]
[365950629,1749995440263,-460.0,0.00019178,2]
[365950631,1749995440273,-460.0,0.00019178,2]
[365950633,1749995440283,-500.0,0.00019178,2]
[365950635,1749995440292,-500.0,0.00019178,2]
[365950637,1749995440302,-500.0,0.00019178,2]
[365950639,1749995440312,-500.0,0.00019178,2]
[365950642,1749995440321,-500.0,0.00019178,2]
[365950645,1749995440332,-500.0,0.00019178,2]
[365950648,1749995440342,-500.0,0.00019178,2]
[365950651,1749995440352,-165.3227852,0.00019178,2]
[365950653,1749995440361,-500.0,0.00019178,2]
[365950655,1749995440373,-338.65314575,0.00019178,2]
[365950657,1749995440382,-460.0,0.00019178,2]
[365950659,1749995440393,-460.0,0.00019178,2]
[365950661,1749995440403,-281.84637289,0.00019178,2]
[365950663,1749995440412,-325.27253663,0.00019178,2]
[365950665,1749995440421,-432.28156503,0.00019178,2]
[365950667,1749995440430,-410.56437132,0.00019178,2]
[365950669,1749995440440,-460.0,0.00019178,2]
[365950671,1749995440449,-460.0,0.00019178,2]
[365950673,1749995440459,-460.0,0.00019178,2]
[365950675,1749995440468,-460.0,0.00019178,2]
[365950677,1749995440477,-460.0,0.00019178,2]
[365950679,1749995440487,-460.0,0.00019178,2]
[365950681,1749995440497,-460.0,0.00019178,2]
[365950683,1749995440507,-460.0,0.00019178,2]
[365950685,1749995440516,-499.99999999,0.00019178,2]
[365950687,1749995440526,-460.0,0.00019178,2]
[365950689,1749995440536,-480.86,0.00019178,2]
[365950691,1749995440546,-460.0,0.00019178,2]
[365950693,1749995440555,-460.0,0.00019178,2]
[365950695,1749995440565,-460.0,0.00019178,2]
[365950697,1749995440575,-460.0,0.00019178,2]
[365950700,1749995440586,-460.0,0.00019178,2]
[365950702,1749995440596,-460.0,0.00019178,2]
[365950704,1749995440605,-430.0,0.00019178,2]
[365950706,1749995440615,-460.0,0.00019178,2]
[365950708,1749995440628,-460.0,0.00019178,2]
[365950710,1749995440637,-300.0,0.00019178,2]
[365950712,1749995440647,-460.0,0.00019178,2]
[365950714,1749995440656,-601.69,0.00019178,2]
[365950716,1749995440666,-460.0,0.00019178,2]
[365950718,1749995440675,-400.0,0.00019178,2]
[365950720,1749995440684,-460.0,0.00019178,2]
[365950722,1749995440695,-460.0,0.00019178,2]
[365950724,1749995440708,-470.0,0.00019178,2]
[365950726,1749995440717,-460.0,0.00019178,2]
[365950728,1749995440727,-470.0,0.00019178,2]
[365950730,1749995440736,-305.84188644,0.00019178,2]
[365950732,1749995440746,-460.0,0.00019178,2]
[365950734,1749995440755,-460.0,0.00019178,2]
[365950755,1749995440765,-460.0,0.00019178,2]
[365950758,1749995440929,-460.0,0.00019178,2]
[365950760,1749995440939,-460.0,0.00019178,2]
[365950762,1749995440949,-408.16965099,0.00019178,2]
[365950764,1749995440958,-460.0,0.00019178,2]
[365950766,1749995440967,-460.0,0.00019178,2]
[365950768,1749995440977,-460.0,0.00019178,2]
[365950770,1749995440987,-460.0,0.00019178,2]
[365950772,1749995440997,-428.51128961,0.00019178,2]
[365950774,1749995441006,-460.0,0.00019178,2]
[365950776,1749995441016,-460.0,0.00019178,2]
[365950778,1749995441025,-460.0,0.00019178,2]
[365950780,1749995441035,-460.0,0.00019178,2]
[365950782,1749995441044,-460.0,0.00019178,2]
[365950784,1749995441054,-460.0,0.00019178,2]
[365950786,1749995441063,-460.0,0.00019178,2]
[365950788,1749995441073,-460.0,0.00019178,2]
[365950790,1749995441082,-460.0,0.00019178,2]
[365950792,1749995441092,-320.0,0.00019178,2]
[365950794,1749995441102,-460.0,0.00019178,2]
[365950796,1749995441111,-460.0,0.00019178,2]
[365950798,1749995441121,-250.0,0.00019178,2]
[365950800,1749995441131,-460.0,0.00019178,2]
[365950802,1749995441140,-520.37129653,0.00019178,2]
[365950804,1749995441150,-418.12591484,0.00019178,2]
[365950806,1749995441159,-460.0,0.00019178,2]
[365950808,1749995441168,-342.30556469,0.00019178,2]
[365950810,1749995441178,-460.0,0.00019178,2]
[365950812,1749995441187,-460.0,0.00019178,2]
[365950814,1749995441197,-460.0,0.00019178,2]
[365950816,1749995441206,-460.0,0.00019178,2]
[365950818,1749995441215,-281.63550722,0.00019178,2]